bitfinex/quotes_SOLUSD_20250619
["timestamp","ask_amount","ask_price","bid_price","bid_amount"]
[1750337840477,5.25335137,145.36,145.32,6.88136526]
[1750337840678,7.82691698,145.36,145.32,6.88136526]
[1750337840877,5.25335137,145.36,145.32,6.88136526]
[1750337841084,7.82691698,145.36,145.32,6.88136526]
[1750337841301,5.25335137,145.36,145.32,6.88136526]
[1750337841499,5.14475236,145.36,145.32,5.25335137]
[1750337841687,7.82691698,145.37,145.32,5.25335137]
[1750337841880,5.25335137,145.37,145.32,5.25335137]
[1750337842282,5.25335137,145.36,145.32,5.25335137]
[1750337842889,5.25335137,145.36,145.33,6.88089176]
[1750337843382,5.1443616,145.37,145.33,6.88089176]
[1750337843575,49.90300023,145.38,145.34,5.25335137]
[1750337843775,26.0,145.38,145.34,5.25335137]
[1750337843973,31.14216754,145.38,145.34,5.25335137]
[1750337844176,26.0,145.38,145.34,5.25335137]
[1750337845300,26.0,145.38,145.35,6.87994496]
[1750337845501,31.25335137,145.38,145.35,6.87994496]
[1750337847305,31.25335137,145.38,145.34,5.25335137]
[1750337848903,31.25335137,145.38,145.35,6.87994496]
[1750337850604,26.0,145.38,145.35,6.87994496]
[1750337852428,18.64964886,145.4,145.37,6.87899841]
[1750337852587,44.07972003,145.42,145.37,29.32984582]
[1750337852787,31.13466866,145.42,145.38,5.25335137]
[1750337853404,36.38802003,145.42,145.38,5.25335137]
[1750337853606,36.38802003,145.42,145.37,29.32984582]
[1750337856829,39.33586092,145.42,145.37,32.27768671]
[1750337857117,39.33586092,145.42,145.38,8.20119226]
[1750337857913,39.33586092,145.42,145.39,6.87805213]
[1750337858224,31.13466866,145.42,145.39,15.07924439]
[1750337858524,26.0,145.42,145.39,15.07924439]
[1750337861228,34.20119226,145.42,145.39,6.87805213]
[1750337863336,26.0,145.42,145.39,6.87805213]
[1750337863510,8.20119226,145.41,145.39,6.87805213]
[1750337864708,8.20119226,145.41,145.38,24.07374614]
[1750337864947,26.0,145.42,145.38,24.07374614]
[1750337865230,8.20119226,145.41,145.38,24.07374614]
[1750337866218,26.0,145.42,145.38,24.07374614]
[1750337866418,8.20119226,145.41,145.38,24.07374614]
[1750337866716,34.20119226,145.42,145.38,8.20119226]
[1750337867730,6.42877028,145.47,145.41,8.20119226]
[1750337867921,8.20119226,145.51,145.46,8.20119226]
[1750337868124,8.20119226,145.52,145.41,7.28268307]
[1750337868326,8.20119226,145.51,145.46,8.20119226]
[1750337868518,34.20119226,145.5,145.46,8.20119226]
[1750337869223,26.85084112,145.52,145.47,8.20119226]
[1750337869420,26.85084112,145.52,145.48,6.87379708]
[1750337869827,26.0,145.5,145.48,6.87379708]
[1750337870013,26.0,145.5,145.47,6.87406345]
[1750337873541,26.0,145.5,145.47,8.20119226]
[1750337875615,26.0,145.5,145.48,8.20119226]
[1750337876223,26.0,145.5,145.47,8.20119226]
[1750337876840,26.0,145.5,145.48,8.20119226]
[1750337877240,34.20119226,145.5,145.46,8.20119226]
[1750337877653,34.20119226,145.5,145.42,146.6513822]
[1750337877833,34.20119226,145.5,145.46,8.20119226]
[1750337879841,34.20119226,145.5,145.47,6.8742696]
[1750337880352,26.0,145.5,145.47,6.8742696]
[1750337880534,34.20119226,145.5,145.47,6.8742696]
[1750337881262,34.20119226,145.5,145.46,6.87458082]
[1750337881754,26.0,145.5,145.46,15.07577308]
[1750337882255,26.0,145.5,145.46,6.87458082]
[1750337882435,26.0,145.5,145.46,15.07577308]
[1750337883940,26.0,145.5,145.44,17.18902005]
[1750337884147,26.0,145.5,145.46,8.20119226]
[1750337884356,26.0,145.5,145.47,8.20119226]
[1750337885668,34.20119226,145.5,145.46,8.20119226]
[1750337886166,34.20119226,145.5,145.47,6.8742696]
[1750337886863,26.0,145.5,145.47,6.8742696]
[1750337887052,34.20119226,145.5,145.47,6.8742696]
[1750337888859,31.24283646,145.5,145.47,6.8742696]
[1750337889062,26.0,145.5,145.47,12.11710606]
[1750337890068,26.0,145.5,145.48,5.24283646]
[1750337890259,26.0,145.5,145.48,12.11638095]
[1750337890768,26.0,145.5,145.45,12.11805131]
[1750337890975,5.24283646,145.49,145.45,12.11805131]
[1750337891273,5.24283646,145.47,145.45,6.87521485]
[1750337891569,5.24283646,145.48,145.45,6.87521485]
[1750337892573,5.24283646,145.47,145.44,6.87548992]
[1750337892866,8.19577945,145.47,145.4,161.78265467]
[1750337893185,8.19577945,145.47,145.43,8.19577945]
[1750337894081,8.19577945,145.48,145.44,15.07146701]
[1750337894490,28.36392831,145.49,145.45,8.19577945]
[1750337894848,26.84542831,145.49,145.44,6.87568756]
[1750337895049,26.84542831,145.49,145.45,8.19577945]
[1750337895574,26.84542831,145.49,145.44,15.07146701]
[1750337896173,26.84542831,145.49,145.45,8.19577945]
[1750337896357,26.0,145.47,145.46,6.87474219]
[1750337897672,18.64964886,145.49,145.46,6.87474219]
[1750337899361,34.19577945,145.5,145.46,6.87474219]
[1750337900487,34.19577945,145.5,145.46,15.07052164]
[1750337900488,26.0,145.5,145.46,15.07052164]
[1750337901390,26.0,145.5,145.47,8.19577945]
[1750337902060,26.0,145.5,145.46,24.06159768]
[1750337902266,26.0,145.5,145.49,6.87332462]
[1750337902580,5.12348227,145.52,145.49,6.87332462]
[1750337902777,8.19577945,145.51,145.49,6.87332462]
[1750337903092,34.19577945,145.5,145.47,6.8742696]
[1750337903986,34.19577945,145.5,145.46,32.25737713]
[1750337904164,26.0,145.5,145.46,24.06159768]
[1750337904487,34.19577945,145.5,145.46,24.06159768]
[1750337904984,8.19577945,145.48,145.46,6.87474219]
[1750337905166,8.19577945,145.47,145.44,6.87568756]
[1750337905361,8.19577945,145.46,145.44,6.87568756]
[1750337906184,8.19577945,145.46,145.43,6.87616035]
[1750337906958,8.19577945,145.47,145.43,6.87616035]
[1750337907483,26.34565674,145.48,145.43,6.87616035]
[1750337907666,8.19577945,145.47,145.43,6.87616035]
[1750337908689,8.19577945,145.46,145.43,6.87616035]
[1750337909780,13.32540994,145.46,145.43,6.87616035]
[1750337911194,26.0,145.45,145.43,6.87616035]
[1750337911393,13.33927525,145.46,145.43,6.87616035]
[1750337911577,8.19577945,145.46,145.43,6.87616035]
[1750337911778,2.57459099,145.45,145.43,6.87616035]
[1750337912088,8.19577945,145.46,145.43,6.87616035]
[1750337912294,5.14744414,145.45,145.43,6.87616035]
[1750337912472,8.19577945,145.46,145.43,6.87616035]
[1750337912773,5.14673253,145.45,145.43,6.87616035]
[1750337912977,8.19577945,145.46,145.43,6.87616035]
[1750337913182,5.14676328,145.45,145.43,6.87616035]
[1750337913489,5.14595601,145.45,145.43,6.87616035]
[1750337914589,5.14595601,145.45,145.42,6.8766332]
[1750337915090,5.14595601,145.45,145.42,15.07241265]
[1750337916896,31.14595601,145.45,145.42,15.07241265]
[1750337917080,5.14595601,145.45,145.42,8.19577945]
[1750337917395,10.76825723,145.46,145.42,8.19577945]
[1750337918993,8.19577945,145.46,145.42,8.19577945]
[1750337919189,10.76755954,145.46,145.43,6.87616035]
[1750337920890,7.81760062,145.46,145.43,6.87616035]
[1750337922006,7.81738626,145.46,145.43,6.87616035]
[1750337922602,5.14329569,145.45,145.43,6.87616035]
[1750337923099,5.24582053,145.44,145.4,80.46011079]
[1750337923300,5.24582053,145.43,145.4,80.46011079]
[1750337923495,5.24582053,145.44,145.4,80.46011079]
[1750337923699,10.38915486,145.44,145.4,80.46011079]
[1750337924197,5.24582053,145.43,145.4,80.46011079]
[1750337924383,10.38915486,145.43,145.4,80.46011079]
[1750337924887,13.34383455,145.43,145.4,80.46011079]
[1750337926394,8.20050022,145.43,145.4,80.46011079]
[1750337936624,8.20050022,145.43,145.4,80.46011079]
[1750337938921,8.20050022,145.43,145.4,73.58265467]
[1750337939332,38.01909356,145.44,145.4,73.58265467]
[1750337939625,8.20050022,145.41,145.38,5.92]
[1750337940520,8.20050022,145.41,145.39,6.87801146]
[1750337942532,26.0,145.39,145.33,32.28289306]
[1750337942725,8.20050022,145.38,145.34,8.20050022]
[1750337944158,26.0,145.39,145.35,6.87994496]
[1750337944315,8.20050022,145.38,145.35,6.87994496]
[1750337944644,8.20050022,145.36,145.31,8.20050022]
[1750337944801,8.20050022,145.36,145.32,8.20050022]
[1750337946102,8.20050022,145.36,145.33,6.88089176]
[1750337946708,23.79298319,145.38,145.33,6.88089176]
[1750337946912,8.20050022,145.36,145.33,6.88089176]
[1750337947931,18.64964886,145.38,145.34,8.20050022]
[1750337947932,8.20050022,145.38,145.34,8.20050022]
[1750337948133,8.20050022,145.38,145.35,6.87994496]
[1750337948846,5.25186923,145.37,145.35,6.87994496]
[1750337949909,5.25186923,145.38,145.35,6.87994496]
[1750337950233,5.25186923,145.38,145.34,6.88041832]
[1750337950733,5.25186923,145.38,145.34,12.13228755]
[1750337951030,8.20593536,145.38,145.34,15.08635368]
[1750337952206,8.20593536,145.37,145.34,6.88041832]
[1750337954618,8.20593536,145.38,145.34,15.08635368]
[1750337956028,26.0,145.39,145.34,15.08635368]
[1750337956245,8.20593536,145.38,145.34,6.88041832]
[1750337956412,8.20593536,145.38,145.34,15.08635368]
[1750337958019,8.20593536,145.37,145.34,6.88041832]
[1750337959109,18.64964886,145.39,145.34,15.08635368]
[1750337959315,8.20593536,145.38,145.34,15.08635368]
[1750337960920,18.64964886,145.39,145.34,15.08635368]
[1750337961236,8.20593536,145.38,145.34,8.20593536]
[1750337963021,26.0,145.4,145.35,8.20593536]
[1750337963325,26.0,145.4,145.37,15.08493377]
[1750337963527,34.20593536,145.4,145.37,6.87899841]
[1750337965316,8.20593536,145.39,145.37,6.87899841]
[1750337965826,34.20593536,145.4,145.37,6.87899841]
[1750337966438,8.20593536,145.39,145.36,6.87947165]
[1750337967237,26.0,145.4,145.36,15.08540701]
[1750337967238,34.20593536,145.4,145.36,15.08540701]
[1750337968142,34.20593536,145.4,145.36,6.87947165]
[1750337968442,8.20593536,145.39,145.36,6.87947165]
[1750337969619,34.20593536,145.4,145.36,6.87947165]
[1750337971314,26.0,145.4,145.36,6.87947165]
[1750337971532,8.20593536,145.39,145.36,6.87947165]
[1750337972844,5.25103204,145.39,145.36,6.87947165]
[1750337973538,5.25103204,145.38,145.36,6.87947165]
[1750337973727,31.25103204,145.37,145.3,5.92]
[1750337973942,5.25103204,145.34,145.3,5.92]
[1750337974527,5.25103204,145.34,145.31,6.88183882]
[1750337975068,26.0,145.35,145.31,12.13287086]
[1750337975266,5.25103204,145.36,145.32,5.25103204]
[1750337975553,26.0,145.37,145.33,5.25103204]
[1750337976658,26.0,145.37,145.34,6.88041832]
[1750337976835,26.0,145.37,145.34,24.08146414]
[1750337977035,5.25103204,145.38,145.34,29.33249618]
[1750337978843,8.20543639,145.38,145.34,32.28690053]
[1750337981052,26.0,145.39,145.34,32.28690053]
[1750337981362,39.34814046,145.39,145.35,8.20543639]
[1750337981571,34.20543639,145.39,145.35,8.20543639]
[1750337981753,39.34814046,145.39,145.35,8.20543639]
[1750337982066,34.20543639,145.39,145.35,8.20543639]
[1750337982269,39.34814046,145.39,145.36,6.87947165]
[1750337982582,34.20543639,145.39,145.36,6.87947165]
[1750337982772,31.14270407,145.39,145.36,32.28358718]
[1750337982980,26.0,145.39,145.36,32.28358718]
[1750337983151,5.14270407,145.39,145.36,32.28358718]
[1750337983471,8.20543639,145.4,145.36,32.28358718]
[1750337983771,5.14896789,145.39,145.36,32.28358718]
[1750337983952,8.20543639,145.4,145.36,32.28358718]
[1750337984153,5.14895905,145.39,145.36,32.28358718]
[1750337984357,8.20543639,145.4,145.36,32.28358718]
[1750337984556,8.20543639,145.38,145.36,6.87947165]
[1750337985553,8.20543639,145.37,145.35,6.87973988]
[1750337986469,8.20543639,145.37,145.33,6.88089176]
[1750337990574,13.35360042,145.37,145.33,6.88089176]
[1750337990875,8.20543639,145.37,145.33,6.88089176]
[1750337991368,8.20543639,145.36,145.33,6.88089176]
[1750337993881,8.20543639,145.37,145.33,8.20543639]
[1750337994980,8.20543639,145.37,145.34,6.88041832]
[1750337996197,8.20543639,145.37,145.33,24.08312116]
[1750337996366,8.20543639,145.37,145.33,32.28855755]
[1750337997164,8.20543639,145.38,145.33,32.28855755]
[1750337997365,5.14673434,145.37,145.33,32.28855755]
[1750337997688,8.20543639,145.38,145.33,32.28855755]
[1750337997889,5.14668396,145.37,145.33,32.28855755]
[1750337998071,8.20543639,145.38,145.33,32.28855755]
[1750337998261,8.20543639,145.36,145.31,32.29187227]
[1750337998457,8.20543639,145.37,145.32,8.20543639]
[1750337998862,8.20543639,145.37,145.33,8.20543639]
[1750338000385,8.20543639,145.37,145.34,6.88041832]
[1750338000887,5.25221296,145.37,145.34,6.88041832]
[1750338001262,18.64964886,145.39,145.34,6.88041832]
[1750338001484,5.25221296,145.37,145.34,6.88041832]
[1750338002693,18.64964886,145.39,145.34,6.88041832]
[1750338002876,10.39843375,145.38,145.34,6.88041832]
[1750338003197,5.14622079,145.37,145.34,6.88041832]
[1750338003391,5.25221296,145.38,145.34,6.88041832]
[1750338003595,5.14716522,145.37,145.34,12.13263128]
[1750338003802,5.25221296,145.38,145.34,12.13263128]
[1750338003972,5.14755801,145.37,145.34,12.13263128]
[1750338004165,5.25221296,145.38,145.34,12.13263128]
[1750338004370,5.14682163,145.37,145.34,12.13263128]
[1750338004569,5.25221296,145.38,145.34,12.13263128]
[1750338004787,5.14731953,145.37,145.34,6.88041832]
[1750338004980,5.25221296,145.38,145.34,6.88041832]
[1750338005180,5.14836906,145.37,145.34,6.88041832]
[1750338005381,5.25221296,145.38,145.34,6.88041832]
[1750338005581,5.14910015,145.37,145.34,6.88041832]
[1750338005785,46.99575935,145.41,145.35,5.25221296]
[1750338005786,5.25221296,145.4,145.35,5.25221296]
[1750338005974,33.68,145.41,145.34,6.88041832]
[1750338005975,5.14967981,145.39,145.36,5.25221296]
[1750338006175,5.14967981,145.38,145.37,5.25221296]
[1750338006375,5.14967981,145.4,145.37,5.25221296]
[1750338006582,31.25221296,145.41,145.37,5.25221296]
[1750338006583,5.14967981,145.39,145.38,6.87852524]
[1750338007900,18.64964886,145.42,145.38,6.87852524]
[1750338007901,5.14967981,145.4,145.38,6.87852524]
[1750338008101,5.25221296,145.41,145.38,6.87852524]
[1750338008300,5.15145108,145.4,145.38,6.87852524]
[1750338008501,7.9208,145.44,145.38,29.32705131]
[1750338008668,5.25221296,145.45,145.4,5.25221296]
[1750338008868,13.34695873,145.44,145.4,8.19837887]
[1750338009083,5.14857986,145.43,145.4,8.19837887]
[1750338009293,13.34726632,145.42,145.38,32.27321722]
[1750338009481,26.0,145.45,145.38,6.87852524]
[1750338009482,8.19837887,145.4,145.38,6.87852524]
[1750338010489,8.19837887,145.4,145.37,6.87899841]
[1750338011373,8.19837887,145.41,145.37,15.07737728]
[1750338013301,8.19837887,145.4,145.37,6.87899841]
[1750338014778,8.19837887,145.4,145.37,24.07649445]
[1750338015003,8.19837887,145.4,145.37,6.87899841]
[1750338015210,13.34576044,145.4,145.37,6.87899841]
[1750338015403,8.19837887,145.4,145.37,6.87899841]
[1750338015610,5.14738157,145.41,145.37,6.87899841]
[1750338015794,8.19837887,145.39,145.37,6.87899841]
[1750338017093,13.34599287,145.4,145.36,15.07785052]
[1750338017284,8.19837887,145.4,145.36,15.07785052]
[1750338017490,8.19837887,145.41,145.37,8.19837887]
[1750338018407,13.34539509,145.41,145.37,8.19837887]
[1750338018591,13.34539509,145.41,145.38,6.87852524]
[1750338018905,34.19837887,145.42,145.38,15.07690411]
[1750338019411,26.0,145.42,145.38,15.07690411]
[1750338019709,31.1462562,145.42,145.38,15.07690411]
[1750338020087,39.34463507,145.42,145.38,15.07690411]
[1750338020388,34.19837887,145.42,145.38,15.07690411]
[1750338020591,39.34463507,145.42,145.38,15.07690411]
[1750338020888,34.19837887,145.42,145.38,15.07690411]
[1750338021089,39.34463507,145.42,145.38,15.07690411]
[1750338021299,34.19837887,145.42,145.38,15.07690411]
[1750338021594,39.34463507,145.42,145.38,15.07690411]
[1750338021798,26.0,145.42,145.38,15.07690411]
[1750338021990,39.34463507,145.42,145.38,32.27321722]
[1750338022204,13.34463507,145.43,145.39,8.19837887]
[1750338022405,5.1462562,145.42,145.39,8.19837887]
[1750338022712,8.19837887,145.42,145.38,32.27321722]
[1750338023791,5.14487199,145.43,145.38,32.27321722]
[1750338023988,13.34325086,145.43,145.39,8.19837887]
[1750338024391,5.14487199,145.43,145.4,8.19837887]
[1750338024589,8.19837887,145.44,145.4,8.19837887]
[1750338025307,8.19837887,145.44,145.38,24.07483835]
[1750338025308,8.19837887,145.44,145.41,6.87710611]
[1750338025606,18.64964886,145.45,145.41,6.87710611]
[1750338025909,8.19837887,145.43,145.41,6.87710611]
[1750338026595,8.19837887,145.42,145.37,6.87857674]
[1750338026798,8.19837887,145.4,145.37,6.87857674]
[1750338026999,8.19837887,145.38,145.36,6.8792984]
[1750338027301,8.19837887,145.37,145.34,6.88041832]
[1750338027893,5.1426782,145.39,145.34,6.88041832]
[1750338028088,8.19837887,145.37,145.34,6.88041832]
[1750338029305,8.19837887,145.36,145.33,6.88089176]
[1750338030423,8.19837887,145.35,145.33,6.88089176]
[1750338031610,5.1426782,145.38,145.33,6.88089176]
[1750338031809,8.19837887,145.35,145.33,6.88089176]
[1750338033024,8.19837887,145.36,145.33,6.88089176]
[1750338033199,8.19837887,145.37,145.33,15.07927063]
[1750338033701,8.19837887,145.37,145.33,32.28150003]
[1750338034119,8.19837887,145.37,145.33,24.08312116]
[1750338034327,8.19837887,145.37,145.33,32.28150003]
[1750338035849,8.19837887,145.38,145.35,6.87994496]
[1750338037712,26.0,145.39,145.35,6.87994496]
[1750338037919,8.19837887,145.39,145.35,15.07832383]
[1750338038143,13.33817107,145.4,145.35,15.07832383]
[1750338038314,13.33817107,145.4,145.35,32.27818623]
[1750338038514,13.33817107,145.4,145.36,8.19837887]
[1750338038849,8.19837887,145.39,145.35,32.27818623]
[1750338039028,13.33817107,145.4,145.36,8.19837887]
[1750338039350,26.0,145.41,145.39,1.5328]
[1750338039351,5.1397922,145.41,145.39,1.5328]
[1750338039516,8.57812204,145.46,145.4,8.19837887]
[1750338039517,8.19837887,145.46,145.4,8.19837887]
[1750338039720,13.33793267,145.46,145.42,8.19837887]
[1750338040020,13.33793267,145.47,145.42,8.19837887]
[1750338040215,44.64964886,145.48,145.42,8.19837887]
[1750338040216,13.33793267,145.46,145.42,8.19837887]
[1750338040546,5.1395538,145.47,145.42,8.19837887]
[1750338040718,13.33793267,145.47,145.42,8.19837887]
[1750338040922,5.1395538,145.47,145.43,8.19837887]
[1750338041119,5.1395538,145.47,145.44,6.87568756]
[1750338041315,8.19837887,145.48,145.44,6.87568756]
[1750338041527,8.19837887,145.48,145.44,15.07406643]
[1750338041528,31.1395538,145.48,145.44,15.07406643]
[1750338042137,31.1395538,145.48,145.45,8.19837887]
[1750338042833,26.0,145.48,145.45,8.19837887]
[1750338043031,26.0,145.48,145.46,6.87474219]
[1750338044265,8.19837887,145.47,145.43,8.19837887]
[1750338044547,26.0,145.48,145.44,8.19837887]
[1750338045456,26.0,145.48,145.45,6.87521485]
[1750338046355,34.19837887,145.48,145.45,6.87521485]
[1750338046656,34.19837887,145.48,145.42,6.8766332]
[1750338046829,8.19837887,145.45,145.42,6.8766332]
[1750338048646,38.00029721,145.48,145.42,6.8766332]
[1750338048847,8.19837887,145.45,145.42,6.8766332]
[1750338050171,38.00029721,145.48,145.42,6.8766332]
[1750338050357,8.19837887,145.45,145.42,6.8766332]
[1750338051975,8.19837887,145.45,145.4,24.0703805]
[1750338052185,8.19837887,145.45,145.41,8.19837887]
[1750338053672,8.19837887,145.45,145.4,32.26875937]
[1750338054047,8.19837887,145.44,145.4,32.26875937]
[1750338055269,8.19837887,145.44,145.4,24.0703805]
[1750338060553,25.52440231,145.46,145.4,24.0703805]
[1750338060854,8.19837887,145.44,145.4,24.0703805]
[1750338061358,8.19837887,145.43,145.4,6.87757909]
[1750338062357,8.19837887,145.44,145.4,6.87757909]
[1750338062867,8.19837887,145.42,145.4,6.87757909]
[1750338064078,18.64964886,145.44,145.37,6.87899841]
[1750338064079,8.19837887,145.41,145.37,6.87899841]
[1750338064285,8.19837887,145.39,145.37,6.87899841]
[1750338065463,8.19837887,145.38,145.35,41.24334835]
[1750338065673,8.19837887,145.38,145.33,6.88063659]
[1750338065674,8.19837887,145.36,145.33,6.88063659]
[1750338065968,8.19837887,145.34,145.33,6.88063659]
[1750338066587,8.19837887,145.35,145.33,6.88063659]
[1750338066891,8.19837887,145.35,145.32,6.88136526]
[1750338069095,18.64964886,145.38,145.32,6.88136526]
[1750338069273,8.19837887,145.35,145.32,6.88136526]
[1750338069778,18.64964886,145.38,145.32,6.88136526]
[1750338069979,8.19837887,145.35,145.32,6.88136526]
[1750338070183,8.19837887,145.35,145.32,24.08477841]
[1750338071595,26.84802773,145.38,145.33,8.19837887]
[1750338071777,8.19837887,145.39,145.35,8.19837887]
[1750338072864,26.0,145.41,145.35,6.87994496]
[1750338072865,8.19837887,145.38,145.35,6.87994496]
[1750338073112,8.19837887,145.36,145.35,6.87994496]
[1750338074081,18.64964886,145.4,145.34,6.88041832]
[1750338074082,8.19837887,145.37,145.34,6.88041832]
[1750338074895,8.19837887,145.38,145.34,15.07879719]
[1750338075220,8.19837887,145.38,145.34,6.88041832]
[1750338075706,18.64964886,145.4,145.34,32.27984301]
[1750338075871,8.19837887,145.39,145.34,32.27984301]
[1750338076897,8.19837887,145.38,145.34,8.19837887]
[1750338077800,8.19837887,145.37,145.33,8.19837887]
[1750338077981,8.19837887,145.37,145.34,6.88041832]
[1750338078180,8.19837887,145.38,145.34,15.07879719]
[1750338078386,8.19837887,145.39,145.35,8.19837887]
[1750338079197,34.19837887,145.41,145.36,8.19837887]
[1750338080282,34.19837887,145.41,145.37,6.87899841]
[1750338081207,8.19837887,145.4,145.37,6.87899841]
[1750338081381,8.19837887,145.39,145.37,6.87899841]
[1750338081797,8.19837887,145.4,145.37,6.87899841]
[1750338082298,8.19837887,145.4,145.35,24.07873202]
[1750338082501,8.19837887,145.4,145.36,8.19837887]
[1750338083899,8.19837887,145.4,145.37,6.87899841]
[1750338086090,8.19837887,145.39,145.37,6.87899841]
[1750338086815,34.19837887,145.4,145.37,6.87899841]
[1750338088008,8.19837887,145.4,145.37,6.87899841]
[1750338088211,8.19837887,145.41,145.37,15.07737728]
[1750338088414,8.19837887,145.41,145.37,32.27487332]
[1750338090518,8.19837887,145.42,145.37,32.27487332]
[1750338090718,8.19837887,145.42,145.38,8.19837887]
[1750338091105,34.19837887,145.43,145.38,8.19837887]
[1750338091613,34.19837887,145.43,145.39,8.19837887]
[1750338092004,34.19837887,145.43,145.37,17.19749604]
[1750338092205,34.19837887,145.43,145.39,8.19837887]
[1750338092807,34.19837887,145.43,145.38,8.19837887]
[1750338093319,26.0,145.43,145.39,32.27156133]
[1750338093502,13.32952936,145.44,145.4,8.19837887]
[1750338093898,8.19837887,145.44,145.4,8.19837887]
[1750338094807,8.19837887,145.46,145.42,8.19837887]
[1750338095412,8.19837887,145.46,145.43,6.87616035]
[1750338095799,8.19837887,145.45,145.43,6.87616035]
[1750338098727,8.19837887,145.45,145.42,6.8766332]
[1750338102825,8.19837887,145.44,145.42,6.8766332]
[1750338103019,8.19837887,145.45,145.42,6.8766332]
[1750338105834,8.19837887,145.44,145.41,24.06978635]
[1750338107717,8.19837887,145.45,145.41,24.06978635]
[1750338110728,8.19837887,145.45,145.41,32.26816522]
[1750338114117,18.64964886,145.46,145.41,6.87710611]
[1750338114118,8.19837887,145.43,145.41,6.87710611]
[1750338114322,8.19837887,145.42,145.39,6.87805213]
[1750338118151,5.13036362,145.44,145.39,6.87805213]
[1750338118436,8.19837887,145.43,145.39,15.076431]
[1750338118643,8.19837887,145.43,145.39,6.87805213]
[1750338120261,8.19837887,145.43,145.39,15.076431]
[1750338120746,13.32874249,145.43,145.39,15.076431]
[1750338120929,8.19837887,145.43,145.39,15.076431]
[1750338121443,13.32874249,145.43,145.39,15.076431]
[1750338121630,8.19837887,145.43,145.39,15.076431]
[1750338122030,13.32874249,145.43,145.39,15.076431]
[1750338122237,8.19837887,145.43,145.39,15.076431]
[1750338122622,13.32874249,145.43,145.39,15.076431]
[1750338122823,8.19837887,145.43,145.39,15.076431]
[1750338123336,13.32874249,145.43,145.39,15.076431]
[1750338123514,8.19837887,145.43,145.39,15.076431]
[1750338123717,13.32874249,145.43,145.39,6.87805213]
[1750338124019,8.19837887,145.43,145.39,6.87805213]
[1750338124326,13.32874249,145.43,145.39,6.87805213]
[1750338124536,8.19837887,145.43,145.39,15.076431]
[1750338124844,13.32874249,145.43,145.39,15.076431]
[1750338125028,8.19837887,145.43,145.39,15.076431]
[1750338125532,13.32874249,145.43,145.39,15.076431]
[1750338125738,8.19837887,145.43,145.39,15.076431]
[1750338125938,13.32874249,145.43,145.39,15.076431]
[1750338126138,8.19837887,145.43,145.39,15.076431]
[1750338126334,13.32874249,145.43,145.39,15.076431]
[1750338126644,8.19837887,145.43,145.39,15.076431]
[1750338127146,13.32874249,145.43,145.39,15.076431]
[1750338127352,8.19837887,145.43,145.39,15.076431]
[1750338127846,13.32874249,145.43,145.39,15.076431]
[1750338128051,8.19837887,145.43,145.39,15.076431]
[1750338128646,13.32874249,145.43,145.39,15.076431]
[1750338128850,8.19837887,145.43,145.39,15.076431]
[1750338129144,13.32874249,145.43,145.39,15.076431]
[1750338129325,8.19837887,145.43,145.39,15.076431]
[1750338130236,8.19837887,145.43,145.39,6.87805213]
[1750338130729,8.19837887,145.43,145.39,15.076431]
[1750338130936,5.24789457,145.43,145.39,12.1259467]
[1750338132524,5.14810169,145.42,145.39,6.87805213]
[1750338132731,5.14810169,145.42,145.39,12.1259467]
[1750338134057,5.14810169,145.42,145.39,6.87805213]
[1750338134960,5.14810169,145.42,145.39,5.24789457]
[1750338135548,5.24789457,145.43,145.39,5.24789457]
[1750338135844,5.14937847,145.42,145.39,5.24789457]
[1750338136145,5.24789457,145.43,145.4,6.87757909]
[1750338136345,5.149397,145.42,145.4,6.87757909]
[1750338136548,5.24789457,145.43,145.4,6.87757909]
[1750338136751,5.1494534,145.42,145.4,6.87757909]
[1750338136958,5.24789457,145.42,145.37,6.87899841]
[1750338137257,5.24789457,145.39,145.37,6.87899841]
[1750338138066,5.24789457,145.39,145.36,24.07804736]
[1750338138245,5.24789457,145.39,145.36,6.87947165]
[1750338138927,8.20487421,145.38,145.36,6.87947165]
[1750338139124,23.79353521,145.4,145.36,6.87947165]
[1750338139348,8.20487421,145.39,145.36,6.87947165]
[1750338140436,8.20487421,145.38,145.36,6.87947165]
[1750338140832,8.20487421,145.39,145.36,6.87947165]
[1750338142456,13.34581243,145.4,145.36,15.08434586]
[1750338142630,8.20487421,145.39,145.36,6.87947165]
[1750338144055,18.64964886,145.4,145.36,6.87947165]
[1750338144363,8.20487421,145.39,145.36,6.87947165]
[1750338145237,8.20487421,145.39,145.35,32.28377956]
[1750338147065,8.20487421,145.39,145.35,24.07890535]
[1750338149561,8.20487421,145.39,145.35,32.28377956]
[1750338150646,23.79103716,145.4,145.35,32.28377956]
[1750338150972,8.20487421,145.39,145.35,32.28377956]
[1750338151369,8.20487421,145.39,145.35,24.07890535]
[1750338151571,8.20487421,145.39,145.35,32.28377956]
[1750338152868,8.20487421,145.38,145.35,6.87994496]
[1750338153058,8.20487421,145.36,145.35,6.87994496]
[1750338154167,8.20487421,145.36,145.3,15.08718666]
[1750338154350,8.20487421,145.34,145.3,15.08718666]